bitfinex-derivatives/quotes_BTCF0:USTF0_20241117
["timestamp","ask_amount","ask_price","bid_price","bid_amount"]
[1731810930940,0.0016729,89723.0,89718.0,0.3608]
[1731810931159,0.02229771,89747.0,89732.0,0.055695]
[1731810931447,0.00010077,89748.0,89739.0,0.3608]
[1731810932032,0.00010077,89748.0,89742.0,0.05569]
[1731810932237,0.00010077,89748.0,89740.0,0.11142868]
[1731810932441,0.00010077,89748.0,89739.0,0.3608]
[1731810932639,0.055692,89738.0,89723.0,0.51202]
[1731810932833,0.00010077,89748.0,89723.0,0.3608]
[1731810932834,0.3608,89743.0,89723.0,0.3608]
[1731810933057,0.3608,89743.0,89724.0,0.11142868]
[1731810933346,0.3608,89743.0,89714.0,0.11848]
[1731810933347,0.055691,89740.0,89715.0,0.055706]
[1731810933553,0.055691,89740.0,89728.0,0.3608]
[1731810933732,0.055696,89732.0,89720.0,0.3608]
[1731810933936,0.055696,89732.0,89714.0,0.11848]
[1731810934150,0.3608,89743.0,89714.0,0.11848]
[1731810934337,0.3608,89727.0,89708.0,0.3622]
[1731810934647,0.055696,89732.0,89708.0,0.3608]
[1731810934852,0.055696,89732.0,89717.0,0.3608]
[1731810935049,0.056696,89732.0,89717.0,0.3608]
[1731810935938,0.11848,89734.0,89728.0,0.3608]
[1731810936138,0.001,89732.0,89731.0,0.3608]
[1731810936338,0.001,89732.0,89719.0,0.05581699]
[1731810936555,0.056696,89732.0,89719.0,0.00011399]
[1731810936848,0.3608,89730.0,89722.0,0.11144979]
[1731810937051,0.055701,89723.0,89719.0,0.00011399]
[1731810937350,0.3608,89730.0,89719.0,0.00011399]
[1731810937648,0.055701,89724.0,89719.0,0.00011399]
[1731810938349,0.001,89723.0,89719.0,0.00011399]
[1731810939142,0.001,89724.0,89719.0,0.00011399]
[1731810939841,0.055701,89723.0,89719.0,0.00011399]
[1731810940146,0.001,89724.0,89719.0,0.00011399]
[1731810940547,0.3608,89730.0,89719.0,0.00011399]
[1731810940548,0.3608,89722.0,89719.0,0.00011399]
[1731810940856,0.055716,89701.0,89690.0,0.3608]
[1731810941233,0.055716,89701.0,89696.0,0.111456]
[1731810941438,0.055716,89701.0,89690.0,0.3608]
[1731810941638,0.3608,89710.0,89690.0,0.3608]
[1731810941839,0.05571,89709.0,89692.0,0.111456]
[1731810942045,0.05571,89709.0,89691.0,8.151e-05]
[1731810942244,0.001,89701.0,89692.0,0.11148272]
[1731810943049,0.001,89701.0,89693.0,0.05572]
[1731810943246,0.001,89701.0,89692.0,0.11148272]
[1731810943247,0.001,89701.0,89695.0,0.055719]
[1731810943750,0.001,89701.0,89696.0,0.11148707]
[1731810943954,0.055712,89707.0,89696.0,0.11148707]
[1731810944160,0.001,89709.0,89696.0,0.11148707]
[1731810944161,0.055715,89702.0,89696.0,0.11148707]
[1731810944649,0.001,89701.0,89691.0,8.151e-05]
[1731810944859,0.001,89701.0,89692.0,0.11148458]
[1731810945556,0.056715,89702.0,89692.0,0.11148458]
[1731810945960,0.056715,89702.0,89692.0,0.16720458]
[1731810946544,0.001,89702.0,89692.0,0.11148458]
[1731810946855,0.055721,89692.0,89691.0,8.151e-05]
[1731810947749,0.39028322,89692.0,89665.0,0.0318]
[1731810947942,0.055724,89686.0,89665.0,0.0318]
[1731810948255,0.055724,89686.0,89665.0,0.3926]
[1731810948556,0.055724,89686.0,89665.0,0.0318]
[1731810948850,0.508724,89686.0,89662.0,0.3608]
[1731810949051,0.508724,89686.0,89654.0,0.0569483]
[1731810949052,0.055733,89673.0,89654.0,0.0569483]
[1731810949248,0.055733,89673.0,89672.0,0.0017436]
[1731810949637,0.390293,89673.0,89672.0,0.0017436]
[1731810949843,0.390293,89673.0,89643.0,0.11848]
[1731810949844,0.33456,89673.0,89643.0,0.11848]
[1731810950052,0.055741,89660.0,89648.0,0.3608]
[1731810950258,0.3608,89668.0,89650.0,0.1115169]
[1731810950443,0.3608,89668.0,89645.0,0.05575]
[1731810950646,0.055745,89653.0,89645.0,0.05575]
[1731810951152,0.055745,89653.0,89634.0,0.00167297]
[1731810951153,0.055745,89653.0,89636.0,0.05648001]
[1731810951352,0.3608,89668.0,89646.0,0.11154614]
[1731810951559,0.055748,89648.0,89646.0,0.11154614]
[1731810951746,0.3608,89660.0,89645.0,0.006]
[1731810951747,0.055742,89659.0,89645.0,0.006]
[1731810952054,0.055749,89647.0,89645.0,0.006]
[1731810952256,0.3608,89652.0,89634.0,0.00167297]
[1731810952554,0.055754,89639.0,89634.0,0.00167297]
[1731810953356,0.3608,89652.0,89634.0,0.00167297]
[1731810953357,0.055756,89636.0,89634.0,0.00167297]
[1731810955046,0.056756,89636.0,89634.0,0.00167297]
[1731810955944,0.001,89636.0,89634.0,0.00167297]
[1731810956447,0.055756,89635.0,89634.0,0.00167297]
[1731810957756,0.056756,89635.0,89634.0,0.00167297]
[1731810958858,0.001,89635.0,89634.0,0.05742997]
[1731810959063,0.001,89635.0,89634.0,0.16899415]
[1731810960261,0.37468,89672.0,89634.0,0.16899415]
[1731810960262,0.055738,89665.0,89634.0,0.92265614]
[1731810960460,0.05614386,89674.0,89661.0,0.3608]
[1731810960663,0.17473899,89664.0,89642.0,0.3608]
[1731810960967,0.17473899,89664.0,89635.0,0.0611]
[1731810960968,0.05575,89646.0,89635.0,0.0309]
[1731810961271,0.3608,89656.0,89643.0,0.11156418]
[1731810961452,0.055753,89641.0,89635.0,0.0309]
[1731810961650,0.055748,89648.0,89635.0,0.0309]
[1731810961852,0.055744,89655.0,89641.0,0.3608]
[1731810962058,0.3608,89658.0,89641.0,0.3608]
[1731810962259,0.055752,89642.0,89641.0,0.3608]
[1731810962462,0.3608,89658.0,89634.0,0.00167297]
[1731810962463,0.3608,89649.0,89634.0,0.00167297]
[1731810962657,0.055756,89636.0,89634.0,0.00167297]
[1731810962857,0.055752,89643.0,89634.0,0.00167297]
[1731810963061,0.11824,89649.0,89635.0,0.11154738]
[1731810963264,0.001,89656.0,89639.0,0.3608]
[1731810963454,0.001,89656.0,89649.0,0.3608]
[1731810963653,0.055747,89650.0,89649.0,0.3608]
[1731810963851,0.47904,89650.0,89623.0,0.47904]
[1731810964056,0.055756,89635.0,89623.0,0.3608]
[1731810965056,0.055763,89624.0,89623.0,0.3608]
[1731810965257,0.055766,89620.0,89613.0,0.3622]
[1731810965464,0.055766,89620.0,89613.0,0.3608]
[1731810965666,0.055766,89620.0,89614.0,0.11156418]
[1731810966164,0.11824,89633.0,89614.0,0.11156418]
[1731810966349,0.055761,89628.0,89615.0,0.055768]
[1731810966554,0.11824,89633.0,89622.0,0.3608]
[1731810966752,0.055759,89631.0,89622.0,0.416564]
[1731810966953,0.055759,89631.0,89622.0,0.055764]
[1731810967464,0.11824,89633.0,89621.0,0.3608]
[1731810967465,0.05576,89629.0,89621.0,0.3608]
[1731810967661,0.055762,89626.0,89621.0,0.3608]
[1731810967857,0.001,89628.0,89614.0,0.11157414]
[1731810968061,0.001,89628.0,89604.0,0.3608]
[1731810968062,0.055772,89610.0,89604.0,0.3608]
[1731810968459,0.055772,89610.0,89605.0,0.11158099]
[1731810968879,0.17473899,89621.0,89605.0,0.11158099]
[1731810969056,0.3608,89623.0,89612.0,0.3608]
[1731810969256,0.055769,89615.0,89612.0,0.3608]
[1731810969963,0.055765,89622.0,89612.0,0.3608]
[1731810970358,0.3608,89623.0,89612.0,0.3608]
[1731810970564,0.05577,89613.0,89612.0,0.3608]
[1731810971367,0.055771,89611.0,89604.0,0.3608]
[1731810971555,0.3608,89623.0,89604.0,0.3608]
[1731810971874,0.001,89613.0,89605.0,0.11159157]
[1731810972367,0.001,89613.0,89606.0,0.055774]
[1731810972570,0.001,89613.0,89605.0,0.11159157]
[1731810972571,0.055774,89607.0,89605.0,0.11159157]
[1731810972765,0.055774,89607.0,89604.0,0.3608]
[1731810973369,0.055774,89606.0,89604.0,0.3668]
[1731810973761,0.001,89611.0,89604.0,0.3668]
[1731810973959,0.002,89607.0,89605.0,0.055775]
[1731810974163,0.002,89607.0,89605.0,0.16737529]
[1731810974772,0.001,89606.0,89605.0,0.16737529]
[1731810974981,0.001,89607.0,89605.0,0.16737529]
[1731810975563,0.055769,89614.0,89605.0,0.16737529]
[1731810975774,0.055771,89612.0,89605.0,0.11160029]
[1731810975966,0.055773,89608.0,89604.0,0.3608]
[1731810976181,0.17473899,89621.0,89604.0,0.3608]
[1731810976370,0.055775,89606.0,89604.0,0.3608]
[1731810977472,0.055775,89606.0,89600.0,0.1]
[1731810977473,0.055777,89601.0,89600.0,0.1]
[1731810978980,0.05472389,89602.0,89600.0,0.1]
[1731810979279,0.001,89606.0,89600.0,0.1]
[1731810979280,0.055775,89605.0,89600.0,0.1]
[1731810979780,0.055772,89610.0,89600.0,0.1]
[1731810979969,0.1316657,89612.0,89610.0,0.055772]
[1731810980167,0.05577712,89623.0,89616.0,0.055768]
[1731810980376,0.11828,89630.0,89611.0,0.3608]
[1731810980377,0.055765,89621.0,89611.0,0.3608]
[1731810980568,0.055761,89627.0,89612.0,0.05577]
[1731810980868,0.05576,89629.0,89617.0,0.055767]
[1731810981368,0.0566216,89628.0,89617.0,0.055767]
[1731810981580,8.561e-05,89628.0,89626.0,0.055762]
[1731810981879,8.561e-05,89628.0,89627.0,0.3608]
[1731810982284,8.561e-05,89628.0,89627.0,0.47238472]
[1731810983871,0.00108561,89628.0,89627.0,0.47238472]
[1731810984479,0.00108561,89628.0,89627.0,0.80710472]
[1731810984867,0.08162654,89632.0,89631.0,0.23049799]
[1731810985181,0.16453318,89638.0,89631.0,0.23049799]
[1731810985182,0.16453318,89638.0,89637.0,0.055755]
[1731810985369,0.11453318,89638.0,89637.0,0.055755]
[1731810985570,0.19743982,89644.0,89643.0,0.055751]
[1731810985871,0.00069,89657.0,89655.0,0.055744]
[1731810986071,0.00069,89657.0,89655.0,0.34876299]
[1731810986375,0.00069,89657.0,89655.0,0.416544]
[1731810986578,0.00069,89657.0,89655.0,1.03742104]
[1731810986972,0.26325309,89662.0,89661.0,0.05574]
[1731810987174,0.00013382,89674.0,89673.0,0.055733]
[1731810987380,0.00013382,89674.0,89673.0,1.230173]
[1731810987381,1e-08,89674.0,89673.0,1.230173]
[1731810987570,1e-08,89674.0,89673.0,1.34171105]
[1731810988189,1e-08,89674.0,89673.0,1.00715105]
[1731810988579,1e-08,89674.0,89673.0,1.34171105]
[1731810988983,1e-08,89674.0,89673.0,1.35477734]
[1731810989178,1e-08,89674.0,89673.0,0.48540434]
[1731810989487,1e-08,89674.0,89673.0,0.01306629]
[1731810989788,1e-08,89674.0,89673.0,0.12458195]
[1731810989990,1e-08,89674.0,89673.0,0.01306629]
[1731810990480,1e-08,89674.0,89673.0,0.12458195]
[1731810990986,1e-08,89674.0,89673.0,0.11151566]
[1731810991373,1e-08,89674.0,89673.0,0.12491694]
[1731810991573,1e-08,89674.0,89673.0,0.11151566]
[1731810994190,1e-08,89674.0,89666.0,0.72304]
[1731810994377,1e-08,89674.0,89666.0,0.7216]
[1731810994581,1e-08,89674.0,89667.0,0.11151566]
[1731810994981,0.055736,89668.0,89666.0,0.00144]
[1731810995185,0.055736,89668.0,89655.0,0.00179188]
[1731810995186,0.0314,89667.0,89655.0,0.00179188]
[1731810996107,0.055742,89659.0,89655.0,0.00179188]
[1731810996480,0.03,89658.0,89655.0,0.00179188]
[1731810997694,0.085742,89658.0,89655.0,0.00179188]
[1731810999498,0.03,89658.0,89655.0,0.00179188]
[1731810999797,0.03,89658.0,89639.0,0.0550527]
[1731810999798,0.03,89658.0,89642.0,0.3608]
[1731810999997,0.03,89658.0,89634.0,0.3608]
[1731811000201,0.03,89658.0,89625.0,0.22273089]
[1731811000202,0.3608,89641.0,89640.0,0.1115368]
[1731811000385,0.3608,89641.0,89625.0,0.00167339]
[1731811000782,0.3608,89641.0,89626.0,0.11163408]
[1731811000989,0.055757,89635.0,89626.0,0.11163408]
[1731811001201,0.0321,89634.0,89626.0,0.11163408]
[1731811001698,0.055758,89633.0,89626.0,0.11163408]
[1731811002000,0.055758,89633.0,89626.0,8.919e-05]
[1731811002203,0.055759,89631.0,89626.0,8.919e-05]
[1731811002501,0.0321,89634.0,89626.0,8.919e-05]
[1731811002502,0.05576,89630.0,89626.0,8.919e-05]
[1731811002695,0.055761,89628.0,89626.0,8.919e-05]
[1731811004103,0.0324,89629.0,89626.0,8.919e-05]
[1731811005692,0.0324,89629.0,89628.0,0.3608]
[1731811006194,0.0321,89634.0,89628.0,0.3608]
[1731811006386,0.0303,89644.0,89636.0,0.055755]
[1731811006590,0.0303,89644.0,89643.0,0.3608]
[1731811007397,0.0329,89656.0,89643.0,0.3608]
[1731811007398,0.0329,89656.0,89643.0,0.47235298]
[1731811007600,0.0329,89656.0,89655.0,0.3608]
[1731811008793,0.0329,89656.0,89643.0,0.41683296]
[1731811009189,0.0329,89656.0,89648.0,0.11153805]
[1731811009387,0.0329,89656.0,89643.0,0.41683296]
[1731811009793,0.0329,89656.0,89644.0,0.11154551]
[1731811010217,0.0329,89656.0,89653.0,0.19920798]
[1731811010694,0.0329,89656.0,89650.0,0.19920798]
[1731811011097,0.0329,89656.0,89649.0,0.19920798]
[1731811011297,0.0329,89656.0,89650.0,0.19920798]
[1731811011600,0.0329,89656.0,89651.0,0.19920798]
[1731811012393,0.055745,89653.0,89652.0,0.19920798]
[1731811012590,0.055751,89644.0,89643.0,0.0014]
[1731811012794,0.3608,89649.0,89634.0,0.19920798]
[1731811013006,0.055753,89641.0,89632.0,0.19920798]
[1731811013204,0.0326,89640.0,89632.0,0.19920798]
[1731811013402,0.0326,89640.0,89629.0,0.19920798]
[1731811013598,0.0326,89640.0,89628.0,0.19920798]
[1731811013808,0.0326,89640.0,89627.0,0.11156169]
[1731811014002,0.0326,89640.0,89627.0,0.055761]
[1731811014313,0.0326,89640.0,89627.0,0.25496898]
[1731811014314,0.055754,89638.0,89627.0,0.25496898]
[1731811014811,0.0326,89640.0,89634.0,0.3608]
[1731811014996,0.088354,89640.0,89634.0,0.3608]
[1731811015195,0.088354,89640.0,89629.0,0.05576]
[1731811015605,0.088354,89640.0,89629.0,0.25496798]
[1731811015805,0.088354,89640.0,89630.0,0.19920798]
[1731811016608,0.0326,89640.0,89632.0,0.3608]
[1731811016810,0.055755,89638.0,89630.0,0.19920798]
[1731811017312,0.3608,89651.0,89634.0,0.055756]
[1731811017510,0.3608,89651.0,89645.0,0.05575]
[1731811018007,0.3608,89651.0,89642.0,0.3608]
[1731811018218,0.3608,89651.0,89637.0,0.19920798]
[1731811018391,0.3608,89651.0,89635.0,0.19920798]
[1731811018597,0.055745,89653.0,89642.0,0.055752]
[1731811018792,0.118,89657.0,89648.0,0.055748]
[1731811019113,0.118,89657.0,89647.0,0.3608]
[1731811019294,0.118,89657.0,89646.0,0.19920798]
[1731811019295,0.055745,89654.0,89646.0,0.19920798]
[1731811019609,0.118,89657.0,89649.0,0.055747]
[1731811019913,0.0308,89663.0,89646.0,0.56000798]
[1731811019914,0.0308,89663.0,89655.0,0.3608]
[1731811020209,0.0308,89663.0,89650.0,0.19920798]
[1731811020394,0.0308,89663.0,89647.0,0.1115424]
[1731811020395,0.0308,89663.0,89656.0,0.055743]
[1731811020601,0.0308,89663.0,89655.0,0.3608]
[1731811020994,0.055743,89657.0,89652.0,0.14930798]
[1731811021198,0.055747,89650.0,89649.0,0.26561064]
[1731811021401,0.055751,89644.0,89634.0,0.26561064]
[1731811021610,0.055751,89644.0,89632.0,0.26561064]
[1731811021812,0.055751,89644.0,89635.0,0.01352732]
[1731811022198,0.0318,89649.0,89635.0,0.01352732]
[1731811022399,0.055755,89638.0,89635.0,0.01352732]
[1731811023102,0.055755,89638.0,89630.0,0.26561064]
[1731811023303,0.055755,89638.0,89632.0,0.26561064]
[1731811023510,0.055755,89638.0,89631.0,0.37717233]
[1731811023814,0.0866857,89649.0,89630.0,0.26561064]
[1731811023996,0.3608,89656.0,89652.0,0.055745]
[1731811023997,0.00060001,89656.0,89652.0,0.055745]
[1731811024201,0.416537,89666.0,89655.0,0.3608]
[1731811024400,0.41709701,89666.0,89655.0,0.3608]
[1731811024801,0.36136001,89666.0,89658.0,0.055742]
[1731811025124,0.055733,89672.0,89658.0,0.055742]
[1731811025408,0.0303,89677.0,89669.0,0.055735]
[1731811025601,0.0303,89677.0,89671.0,0.055733]
[1731811026302,0.1178,89683.0,89672.0,0.18089464]
[1731811026508,0.0551964,89689.0,89673.0,0.01352773]
[1731811026709,0.05573201,89674.0,89673.0,0.01352773]
[1731811026911,0.055741,89659.0,89655.0,0.3320133]
[1731811027102,0.055744,89656.0,89654.0,0.00167302]
[1731811027497,0.1178,89664.0,89654.0,0.00167302]
[1731811027702,0.1178,89669.0,89656.0,0.055743]
[1731811028012,0.1178,89669.0,89661.0,0.32227873]
[1731811028211,0.1178,89669.0,89663.0,0.3608]
[1731811028519,1e-08,89674.0,89668.0,0.26653873]
[1731811028702,1e-08,89674.0,89673.0,0.3608]
[1731811029205,1e-08,89674.0,89669.0,0.26653873]
[1731811029399,1e-08,89674.0,89668.0,0.055735]
[1731811029601,1e-08,89674.0,89672.0,0.3608]
[1731811029797,1e-08,89674.0,89672.0,0.416533]
[1731811031014,1e-08,89674.0,89673.0,0.11151628]
[1731811031217,1e-08,89674.0,89673.0,0.44607628]
[1731811032104,1e-08,89674.0,89673.0,0.74607628]
[1731811032809,0.055711,89708.0,89676.0,0.05573]
[1731811033007,0.055711,89708.0,89673.0,1.06571185]
[1731811033008,0.086712,89707.0,89696.0,0.3608]
[1731811033316,0.055717,89699.0,89684.0,0.3608]
[1731811034207,0.055717,89699.0,89685.0,0.11148085]
[1731811034409,0.055717,89699.0,89686.0,0.055724]
[1731811035118,0.055717,89699.0,89687.0,0.11149328]
[1731811035320,9.306e-05,89706.0,89696.0,0.3608]
[1731811036005,9.306e-05,89706.0,89697.0,0.11149204]
[1731811036602,0.17473899,89704.0,89685.0,0.26584209]
[1731811036806,9.306e-05,89706.0,89685.0,0.26584209]
[1731811036807,0.055724,89687.0,89685.0,0.26584209]
[1731811037003,0.3608,89690.0,89668.0,0.26584209]
[1731811037004,0.0654,89686.0,89668.0,0.26584209]
[1731811037314,0.055728,89681.0,89668.0,0.11148085]
[1731811037509,0.0307,89680.0,89668.0,0.11148085]
[1731811037716,0.0307,89680.0,89664.0,0.3608]
[1731811037717,0.0307,89680.0,89674.0,0.3608]
[1731811038107,0.033,89686.0,89674.0,0.3608]
[1731811038307,0.3608,89690.0,89682.0,0.3608]
[1731811039126,0.3608,89690.0,89683.0,0.11150758]
[1731811039304,0.3608,89690.0,89686.0,0.055724]
[1731811039709,0.3608,89690.0,89682.0,0.3608]
[1731811039710,0.055715,89702.0,89682.0,0.3608]
[1731811040017,0.033,89705.0,89690.0,0.3608]
[1731811040219,0.055713,89705.0,89693.0,0.05572]
[1731811040406,0.0321,89710.0,89691.0,0.11148582]
[1731811040608,0.055714,89703.0,89691.0,0.11148582]
[1731811040813,0.055714,89703.0,89690.0,0.3608]
[1731811041013,0.0321,89710.0,89690.0,0.3608]
[1731811041014,0.14325732,89710.0,89693.0,0.05572]
[1731811041513,0.14325732,89710.0,89703.0,0.055713]
[1731811041514,0.0321,89710.0,89703.0,0.055713]
[1731811041715,0.3608,89714.0,89703.0,0.055713]
[1731811042319,0.0332,89715.0,89704.0,0.11148334]
[1731811043212,0.0332,89715.0,89705.0,0.416513]
[1731811043525,0.0332,89715.0,89705.0,0.3608]
[1731811043912,0.0332,89715.0,89705.0,0.4722765]
[1731811044621,0.055707,89714.0,89705.0,0.4722765]
[1731811046122,0.0332,89715.0,89705.0,0.4722765]
[1731811046319,0.00167279,89717.0,89705.0,0.4722765]
[1731811047725,0.00167279,89717.0,89705.0,0.48606921]
[1731811047908,0.00167279,89717.0,89705.0,0.48606916]
[1731811048114,0.055699,89728.0,89705.0,0.98145549]
[1731811048317,0.055699,89728.0,89716.0,0.3608]
[1731811048519,0.08674589,89730.0,89716.0,0.3608]
[1731811048717,0.05484589,89730.0,89725.0,0.0557]
[1731811048920,0.05484589,89730.0,89727.0,0.055699]
[1731811049226,0.0325,89740.0,89728.0,0.05575752]
[1731811049520,0.0325,89740.0,89728.0,0.16722222]
[1731811049521,0.055692,89739.0,89728.0,0.16722222]
[1731811049724,0.055698,89729.0,89728.0,5.952e-05]
[1731811050122,0.390058,89729.0,89728.0,5.952e-05]
[1731811050323,0.17473899,89721.0,89693.0,0.05538086]
[1731811050627,0.3608,89713.0,89697.0,0.11144731]
[1731811050936,0.0621,89720.0,89677.0,0.00104]
[1731811050937,0.055724,89686.0,89677.0,0.00104]
[1731811051114,0.416524,89686.0,89677.0,0.00104]
[1731811051432,0.055729,89678.0,89677.0,0.00104]
[1731811051725,0.055738,89665.0,89663.0,0.26584209]
[1731811051920,0.055733,89672.0,89654.0,0.02229055]
[1731811052118,0.055733,89672.0,89663.0,0.055738]
[1731811052319,0.3608,89678.0,89662.0,0.3608]
[1731811052519,0.055729,89679.0,89663.0,0.055738]
[1731811052719,0.055725,89685.0,89671.0,0.3608]
[1731811052921,0.055725,89685.0,89674.0,0.055732]
[1731811053123,0.00013494,89686.0,89671.0,0.3608]
[1731811053427,0.00013494,89686.0,89676.0,0.05573]
[1731811053619,0.05585994,89686.0,89676.0,0.05573]
[1731811054716,0.00013494,89686.0,89676.0,0.26631575]
[1731811055027,0.00013494,89686.0,89680.0,0.055728]
[1731811055227,0.00013494,89686.0,89680.0,0.26631575]
[1731811055527,0.00013494,89686.0,89682.0,0.26631575]
[1731811055721,0.00013494,89686.0,89679.0,0.3608]
[1731811055722,0.00013494,89686.0,89683.0,0.26631575]
[1731811056118,0.00013494,89686.0,89684.0,0.4335446]
[1731811056427,0.00013494,89686.0,89685.0,0.26631575]
[1731811056615,0.00013494,89686.0,89685.0,0.65012693]
[1731811056821,0.00013494,89686.0,89685.0,0.11150136]
[1731811057324,0.00013494,89686.0,89685.0,0.42906993]
[1731811058822,0.00013494,89686.0,89685.0,0.76358993]
[1731811059033,0.00013494,89686.0,89685.0,1.14262564]
[1731811059334,0.055718,89697.0,89686.0,9.072e-05]
[1731811059524,0.055718,89697.0,89691.0,0.33351815]
[1731811059721,0.055718,89697.0,89690.0,0.33351815]
[1731811059924,0.416513,89705.0,89692.0,0.11150074]
[1731811060119,0.055714,89704.0,89692.0,0.33351815]
[1731811060326,0.3608,89705.0,89692.0,0.31773846]
[1731811060535,0.05572,89694.0,89692.0,0.11150074]
[1731811060716,0.055723,89688.0,89686.0,9.072e-05]
[1731811060917,0.055723,89688.0,89687.0,0.01317181]
[1731811061131,0.055723,89688.0,89686.0,9.072e-05]
[1731811061534,0.055723,89688.0,89686.0,0.26701847]
[1731811062026,0.055719,89695.0,89686.0,0.26701847]
[1731811062219,0.49240839,89705.0,89690.0,0.33361269]
[1731811062220,0.055715,89702.0,89690.0,0.33361269]
[1731811062625,0.055715,89702.0,89691.0,0.65136185]
[1731811062937,0.3608,89705.0,89692.0,0.31775167]
[1731811063230,0.3608,89705.0,89692.0,1.05235756]
[1731811063430,0.3608,89705.0,89696.0,0.055718]
[1731811063633,0.3608,89705.0,89701.0,0.33343621]
[1731811063829,0.3608,89705.0,89703.0,0.33343621]
[1731811064235,0.00012773,89710.0,89703.0,0.33343621]
[1731811064433,0.00012773,89710.0,89709.0,0.26666445]
[1731811064733,0.05571,89709.0,89707.0,0.26666445]
[1731811064941,0.055713,89705.0,89703.0,0.26666445]
[1731811065231,0.00012773,89710.0,89700.0,0.26666445]
[1731811065439,0.055713,89704.0,89701.0,0.26666445]
[1731811065625,0.055716,89700.0,89699.0,0.26666445]
[1731811065929,0.055716,89700.0,89698.0,0.62746445]
[1731811066132,0.055716,89700.0,89698.0,0.26666445]
[1731811066325,0.00012773,89710.0,89699.0,0.31689509]
[1731811066526,0.055716,89700.0,89699.0,0.31689509]
[1731811066922,0.055717,89698.0,89691.0,0.40012346]
[1731811067127,0.3608,89702.0,89692.0,0.3171185]
[1731811067128,0.05572,89693.0,89692.0,0.3171185]
[1731811067635,0.05572,89693.0,89692.0,0.42860246]
[1731811067836,0.055716,89701.0,89692.0,0.42860246]
[1731811068040,0.055716,89700.0,89698.0,0.33406196]
[1731811068232,0.055716,89700.0,89695.0,0.40012346]
[1731811068439,0.055716,89700.0,89696.0,0.31767408]
[1731811068732,0.055716,89700.0,89697.0,0.31767408]
[1731811068921,0.055716,89700.0,89696.0,0.40012346]
[1731811068922,0.055716,89700.0,89698.0,0.31767408]
[1731811069125,0.055716,89700.0,89699.0,0.31767408]
[1731811070635,0.055716,89700.0,89699.0,0.31267015]
[1731811072136,0.0618,89707.0,89699.0,0.31267015]
[1731811072137,0.21902039,89707.0,89699.0,0.36838615]
[1731811072332,0.055712,89707.0,89704.0,0.33443474]
[1731811072533,0.055712,89707.0,89705.0,0.33443474]
[1731811072841,0.055712,89707.0,89704.0,0.33443474]
[1731811073145,0.055712,89707.0,89705.0,0.33443474]
[1731811073748,0.055712,89707.0,89706.0,0.33443474]
[1731811073939,0.055712,89707.0,89705.0,0.33443474]
[1731811074643,0.055712,89707.0,89695.0,0.055719]
[1731811074644,0.055711,89707.0,89706.0,0.31335109]
[1731811074834,0.36092773,89710.0,89706.0,0.64777334]
[1731811075036,0.23044999,89707.0,89706.0,0.26756002]
[1731811075240,0.23044999,89707.0,89703.0,0.26756002]
[1731811075241,0.055713,89704.0,89703.0,0.26756002]
[1731811075537,0.055714,89703.0,89702.0,0.26756002]
[1731811075933,0.055714,89703.0,89678.0,0.0302]
[1731811075934,0.055715,89701.0,89696.0,0.11786002]
[1731811076134,0.055723,89689.0,89688.0,0.33442225]
[1731811076542,0.055724,89687.0,89686.0,9.072e-05]
[1731811077335,0.055724,89687.0,89686.0,0.33458857]
[1731811077738,0.055724,89687.0,89686.0,9.072e-05]
[1731811079746,0.67304009,89687.0,89686.0,9.072e-05]
[1731811079948,0.22128009,89687.0,89686.0,7.2e-07]
[1731811080131,0.055724,89687.0,89686.0,7.2e-07]
[1731811080538,0.52265914,89687.0,89686.0,7.2e-07]
[1731811080738,0.44440106,89687.0,89686.0,7.2e-07]
[1731811081253,0.2272071,89687.0,89686.0,7.2e-07]
[1731811081437,0.055724,89687.0,89686.0,7.2e-07]
[1731811083638,0.18810003,89687.0,89686.0,7.2e-07]
[1731811084046,0.055724,89687.0,89686.0,7.2e-07]
[1731811085536,0.1880865,89687.0,89686.0,7.2e-07]
[1731811086146,0.055724,89687.0,89686.0,7.2e-07]
[1731811088766,0.41708201,89691.0,89686.0,0.41940393]
[1731811088934,0.3608,89691.0,89690.0,0.33435626]
[1731811089139,0.3608,89691.0,89686.0,0.11150022]
[1731811089349,0.53553899,89691.0,89686.0,0.33399449]
[1731811089554,0.055723,89688.0,89682.0,0.27766149]
[1731811089755,0.055723,89688.0,89676.0,0.40012346]
[1731811089756,0.05573,89677.0,89676.0,0.40012346]
[1731811090051,0.41653,89677.0,89675.0,0.00167265]
[1731811090654,0.41653,89677.0,89676.0,7.871e-05]
[1731811092154,0.47199826,89677.0,89676.0,7.871e-05]
[1731811093349,0.80651826,89677.0,89676.0,7.871e-05]
[1731811095859,0.80651826,89677.0,89676.0,5.04e-06]
[1731811097064,0.80651826,89677.0,89648.0,0.001673]
[1731811097065,0.055747,89649.0,89648.0,0.001673]
[1731811099559,0.3608,89651.0,89649.0,0.055747]
[1731811099746,0.3608,89651.0,89648.0,0.11321976]
[1731811099747,0.055743,89656.0,89648.0,0.11321976]
[1731811099948,0.055743,89656.0,89648.0,0.362473]
[1731811100149,0.055747,89650.0,89649.0,0.11154676]
[1731811100349,0.055747,89650.0,89648.0,0.001673]
[1731811100649,0.055747,89650.0,89649.0,0.3608]
[1731811100853,0.3608,89662.0,89649.0,0.3608]
[1731811101051,0.055745,89653.0,89648.0,0.001673]
[1731811102050,0.055742,89659.0,89649.0,0.52809127]
[1731811102251,0.055742,89659.0,89650.0,0.3590923]
[1731811102459,0.055742,89659.0,89650.0,0.055746]
[1731811102656,0.05494871,89668.0,89658.0,0.3608]
[1731811102960,0.055736,89668.0,89659.0,0.055741]
[1731811103179,0.05574,89661.0,89659.0,0.033]
[1731811103784,0.17473899,89666.0,89649.0,0.3608]
[1731811103952,0.055746,89651.0,89649.0,0.3608]
[1731811104152,0.3608,89661.0,89648.0,0.001673]
[1731811104354,0.055747,89650.0,89648.0,0.001673]
[1731811104953,0.055747,89650.0,89641.0,0.3608]
[1731811105153,0.055752,89642.0,89641.0,0.3608]
[1731811106463,0.00013043,89647.0,89641.0,0.3608]
[1731811106670,0.00013043,89647.0,89641.0,0.47235547]